fUSD/lending_fUSD_20241029
["ID","MTS","AMOUNT","RATE_DAILY","PERIOD"]
[340981799,1730208648305,-150.0,0.0003867,2]
[340981800,1730208648403,-150.0,0.0003868,2]
[340981801,1730208648413,-150.0,0.00038684,2]
[340981802,1730208648424,-151.0,0.00038713,14]
[340981803,1730208648433,-246.98845506,0.00038723,2]
[340981804,1730208648443,-150.0,0.00038735,2]
[340981805,1730208648452,-150.0,0.00038741,2]
[340981806,1730208648461,-150.0,0.00038755,2]
[340981807,1730208648471,-150.0,0.00038759,2]
[340981808,1730208648481,-150.0,0.00038779,2]
[340981809,1730208648490,-150.0,0.00038782,2]
[340981810,1730208648500,-150.0,0.00038791,2]
[340981811,1730208648510,-150.0,0.00038802,2]
[340981812,1730208648519,-150.0,0.00038806,2]
[340981813,1730208648530,-167.0,0.00038808,2]
[340981814,1730208648540,-13833.10332889,0.00039,7]
[340981815,1730208648550,-161.0,0.00039,2]
[340981816,1730208648559,-50132.55178551,0.00039,7]
[340981817,1730208648569,-397.0,0.00039,25]
[340981818,1730208648579,-2000.0,0.00039,2]
[340981819,1730208648588,-200.0,0.00039,2]
[340981820,1730208648599,-174.897143,0.00039,14]
[340981821,1730208648610,-151.0,0.00039,14]
[340981822,1730208648620,-151.0,0.00039,14]
[340981823,1730208648631,-200.0,0.00039,2]
[340981824,1730208648640,-151.0,0.00039,7]
[340981825,1730208648650,-151.0,0.00039,14]
[340981826,1730208648660,-151.0,0.00039,14]
[340981827,1730208648670,-151.0,0.00039,14]
[340981828,1730208648680,-151.0,0.00039,14]
[340981829,1730208648690,-151.0,0.00039,14]
[340981830,1730208648700,-151.0,0.00039,14]
[340981831,1730208648710,-496.175722,0.00039,14]
[340981832,1730208648720,-496.175722,0.00039,14]
[340981833,1730208648729,-529.91566,0.00039,14]
[340981834,1730208648738,-529.91566,0.00039,14]
[340981835,1730208648748,-155.884215,0.00039,14]
[340981836,1730208648758,-151.0,0.00039,14]
[340981837,1730208648768,-263.251637,0.00039,14]
[340981838,1730208648777,-482.43,0.00039189,2]
[340981839,1730208648787,-167.44,0.00039246,2]
[340981840,1730208648796,-2000.0,0.0003939,2]
[340981841,1730208648805,-200.0,0.0003939,2]
[340981842,1730208648815,-200.0,0.0003939,2]
[340981843,1730208648824,-500.0,0.00039673,5]
[340981844,1730208648833,-181876.95217617,0.0003968,2]
[340981845,1730208648843,-121819.69494457,0.0003968,2]
[340981846,1730208648854,-66906.02541518,0.0003968,2]
[340981847,1730208648863,-151.0,0.0003968,14]
[340981848,1730208648872,-151.0,0.0003968,14]
[340981849,1730208648881,-151.0,0.0003968,14]
[340981850,1730208648890,-151.0,0.0003968,14]
[340981851,1730208648900,-210.929477,0.0003968,14]
[340981852,1730208648909,-151.0,0.0003968,14]
[340981853,1730208648919,-151.0,0.0003968,14]
[340981854,1730208648930,-220.821344,0.0003968,14]
[340981855,1730208648939,-151.0,0.0003968,14]
[340981856,1730208648949,-151.0,0.0003968,14]
[340981857,1730208648959,-151.0,0.0003968,14]
[340981858,1730208648969,-151.0,0.0003968,14]
[340981859,1730208648978,-151.0,0.0003968,14]
[340981860,1730208648988,-151.0,0.0003968,14]
[340981861,1730208648997,-151.0,0.0003968,14]
[340981862,1730208649007,-170.695628,0.0003968,14]
[340981863,1730208649016,-170.582073,0.0003968,14]
[340981864,1730208649025,-496.175722,0.0003968,14]
[340981865,1730208649034,-496.175722,0.0003968,14]
[340981866,1730208649043,-496.175722,0.0003968,14]
[340981867,1730208649053,-496.175722,0.0003968,14]
[340981868,1730208649063,-496.175722,0.0003968,14]
[340981869,1730208649073,-496.175722,0.0003968,14]
[340981870,1730208649082,-529.91566,0.0003968,14]
[340981871,1730208649091,-529.91566,0.0003968,14]
[340981872,1730208649101,-529.91566,0.0003968,14]
[340981873,1730208649112,-529.91566,0.0003968,14]
[340981874,1730208649122,-529.91566,0.0003968,14]
[340981875,1730208649132,-529.91566,0.0003968,14]
[340981876,1730208649142,-151.0,0.0003968,14]
[340981877,1730208649152,-151.0,0.0003968,14]
[340981878,1730208649162,-151.0,0.0003968,14]
[340981879,1730208649172,-198.79,0.00039726,2]
[340981880,1730208649182,-6478.0,0.00039736,3]
[340981881,1730208649192,-2000.0,0.00039784,2]
[340981882,1730208649202,-200.0,0.00039784,2]
[340981883,1730208649212,-200.0,0.00039784,2]
[340981884,1730208649221,-15578.09124384,0.000398,2]
[340981885,1730208649231,-33448.83033659,0.000398,2]
[340981886,1730208649240,-151.0,0.000398,14]
[340981887,1730208649253,-173.2,0.000398,14]
[340981888,1730208649263,-496.175722,0.000398,14]
[340981889,1730208649273,-496.175722,0.000398,14]
[340981890,1730208649283,-529.91566,0.000398,14]
[340981891,1730208649294,-529.91566,0.000398,14]
[340981892,1730208649304,-151.0,0.000398,14]
[340981893,1730208649314,-646.55244925,0.00039973,5]
[340981894,1730208649324,-500.0,0.00039973,5]
[340981895,1730208649333,-500.0,0.00039973,5]
[340981896,1730208649343,-485591.53102908,0.0004,2]
[340981897,1730208649354,-164.24064786,0.0004,30]
[340981898,1730208649364,-623.55375712,0.0004,5]
[340981899,1730208649375,-612.92743039,0.0004,60]
[340981900,1730208649385,-54914.7034157,0.0004,120]
[340981901,1730208649395,-129478.58348347,0.0004,30]
[340981902,1730208649404,-312.4,0.0004,120]
[340981903,1730208649414,-161.3269697,0.0004,120]
[340981904,1730208649423,-33678.0,0.0004,2]
[340981905,1730208649433,-160.0,0.0004,120]
[340981906,1730208649442,-12831.78153577,0.0004,30]
[340981907,1730208649452,-35912.34450719,0.0004,2]
[340981908,1730208649461,-1025.69077152,0.0004,2]
[340981909,1730208649470,-2674.73,0.0004,120]
[340981910,1730208649480,-1041.72,0.0004,120]
[340981911,1730208649489,-424.9,0.0004,120]
[340981912,1730208649499,-844.13,0.0004,120]
[340981913,1730208649509,-11914.55,0.0004,120]
[340981914,1730208649518,-12499.99,0.0004,120]
[340981915,1730208649529,-1057.28,0.0004,120]
[340981916,1730208649538,-496.175722,0.0004,14]
[340981917,1730208649547,-496.175728,0.0004,14]
[340981918,1730208649557,-529.91566,0.0004,14]
[340981919,1730208649566,-529.91566,0.0004,14]
[340981920,1730208649575,-529.91566,0.0004,14]
[340981921,1730208649585,-529.91567,0.0004,14]
[340981922,1730208649594,-151.0,0.0004,14]
[340981923,1730208649603,-151.0,0.0004,14]
[340981924,1730208649612,-152.66,0.0004,2]
[340981925,1730208649621,-152.66,0.0004,2]
[340981926,1730208649631,-152.66,0.0004,2]
[340981927,1730208649640,-152.66,0.0004,2]
[340981928,1730208649649,-152.66,0.0004,2]
[340981929,1730208649658,-152.66,0.0004,2]
[340981930,1730208649667,-152.66,0.0004,2]
[340981931,1730208649677,-152.66,0.0004,2]
[340981932,1730208649686,-152.66,0.0004,2]
[340981933,1730208649695,-152.66,0.0004,2]
[340981934,1730208649704,-152.66,0.0004,2]
[340981935,1730208649713,-152.66,0.0004,2]
[340981936,1730208649723,-152.66,0.0004,2]
[340981937,1730208649731,-152.66,0.0004,2]
[340981938,1730208649740,-152.66,0.0004,2]
[340981939,1730208649750,-152.66,0.0004,2]
[340981940,1730208649760,-152.66,0.0004,2]
[340981941,1730208649770,-152.66,0.0004,2]
[340981942,1730208649779,-152.66,0.0004,2]
[340981943,1730208649789,-152.66,0.0004,2]
[340981944,1730208649799,-152.66,0.0004,2]
[340981945,1730208649809,-152.66,0.0004,2]
[340981946,1730208649819,-152.66,0.0004,2]
[340981947,1730208649828,-152.66,0.0004,2]
[340981948,1730208649838,-152.66,0.0004,2]
[340981949,1730208649848,-152.66,0.0004,2]
[340981950,1730208649859,-152.66,0.0004,2]
[340981951,1730208649868,-152.66,0.0004,2]
[340981952,1730208649877,-152.66,0.0004,2]
[340981953,1730208649887,-152.66,0.0004,2]
[340981954,1730208649897,-152.66,0.0004,2]
[340981955,1730208649907,-152.66,0.0004,2]
[340981956,1730208649917,-152.66,0.0004,2]
[340981957,1730208649926,-152.66,0.0004,2]
[340981958,1730208649935,-152.66,0.0004,2]
[340981959,1730208649945,-172.26,0.00040075,2]
[340981960,1730208649954,-2000.0,0.00040182,2]
[340981961,1730208649963,-200.0,0.00040182,2]
[340981962,1730208649972,-200.0,0.00040182,2]
[340981963,1730208649982,-157.51,0.00040274,2]
[340981964,1730208649991,-150.0,0.00040274,2]
[340981965,1730208650001,-150.0,0.00040274,2]
[340981966,1730208650010,-150.0,0.00040274,2]
[340981967,1730208650019,-150.0,0.00040274,2]
[340981968,1730208650029,-11535.0,0.000404,3]
[340981969,1730208650038,-200.0,0.00040584,2]
[340981970,1730208650048,-1234.0,0.00040658,120]
[340981971,1730208650057,-10000.0,0.000407,60]
[340981972,1730208650067,-11535.0,0.000407,5]
[340981973,1730208650077,-1000.0,0.0004073,2]
[340981974,1730208650086,-744.48669493,0.00040739,2]
[340981975,1730208650095,-167.44,0.00040801,2]
[340981976,1730208650106,-5526.05,0.00040821,120]
[340981977,1730208650116,-152.0,0.00040826,4]
[340981978,1730208650125,-500.0,0.00040873,5]
[340981979,1730208650134,-160.54788936,0.00040873,5]
[340981980,1730208650144,-62389.42273,0.000409,2]
[340981981,1730208650153,-88976.95079,0.000409,2]
[340981982,1730208650162,-2658.863,0.00040908,120]
[340981983,1730208650255,-2658.864,0.00040908,120]
[340981984,1730208650265,-2658.864,0.00040908,120]
[340981985,1730208650275,-2658.863,0.00040908,120]
[340981986,1730208650284,-2658.864,0.00040908,120]
[340981987,1730208650295,-10566.83371536,0.00041,30]
[340981988,1730208650304,-20188.11086408,0.00041,7]
[340981989,1730208650314,-15420.5152102,0.00041022,7]
[340981990,1730208650324,-1699.65264085,0.00041022,7]
[340981991,1730208650334,-26287.1010751,0.00041022,7]
[340981992,1730208650343,-462.29921431,0.00041022,7]
[340981993,1730208650352,-526.56664896,0.00041022,7]
[340981994,1730208650364,-160.49464217,0.00041073,5]
[340981995,1730208650374,-1252.07257924,0.00041095,120]
[340981996,1730208650383,-1000.0,0.00041096,2]
[340981997,1730208650393,-1000.0,0.00041096,2]
[340981998,1730208650402,-1000.0,0.00041096,2]
[340981999,1730208650411,-1000.0,0.00041096,2]
[340982000,1730208650420,-1000.0,0.00041096,2]
[340982001,1730208650429,-1000.0,0.00041096,2]
[340982002,1730208650438,-1000.0,0.00041096,2]
[340982003,1730208650447,-1000.0,0.00041096,2]
[340982004,1730208650456,-1000.0,0.00041096,2]
[340982005,1730208650465,-1000.0,0.00041096,2]
[340982006,1730208650474,-1000.0,0.00041096,2]
[340982007,1730208650483,-601.0,0.00041096,2]
[340982008,1730208650492,-150.0,0.00041096,2]
[340982009,1730208650501,-151.0,0.00041096,7]
[340982010,1730208650510,-154.308322,0.00041096,7]
[340982011,1730208650519,-157.0,0.00041096,2]
[340982012,1730208650530,-150.0,0.000411,7]
[340982013,1730208650540,-200.0,0.000411,2]
[340982014,1730208650551,-1439.0,0.000411,2]
[340982015,1730208650561,-461.46788738,0.00041118,120]
[340982016,1730208650571,-1000.0,0.000413,30]
[340982017,1730208650581,-482.43,0.00041453,2]
[340982018,1730208650591,-200845.13121869,0.000417,7]
[340982019,1730208650600,-20000.0,0.000418,20]
[340982020,1730208650610,-1327.97216697,0.0004188,2]
[340982021,1730208650619,-1000.0,0.00041917,120]
[340982022,1730208650630,-523.31739804,0.00041917,120]
[340982023,1730208650641,-5526.05,0.00041917,120]
[340982024,1730208650651,-154.17,0.0004193,120]
[340982025,1730208650660,-12140.98,0.00041958,7]
[340982026,1730208650669,-2865.21,0.00041958,7]
[340982027,1730208650678,-1070.73,0.00041958,7]
[340982028,1730208650688,-3614.6478977,0.00042,2]
[340982029,1730208650697,-465.62121984,0.00042,120]
[340982030,1730208650707,-354943.36464943,0.00042,2]
[340982031,1730208650716,-1000.0,0.00042,37]
[340982032,1730208650726,-429.33721774,0.00042,5]
[340982033,1730208650735,-1000000.0,0.00042,2]
[340982034,1730208650744,-1000000.0,0.00042,2]
[340982035,1730208650753,-1000000.0,0.00042,2]
[340982036,1730208650762,-500.0,0.00042,5]
[340982037,1730208650771,-854.6503322,0.00042,43]
[340982038,1730208650781,-1625.96299103,0.00042,120]
[340982039,1730208650790,-151.0,0.00042,30]
[340982040,1730208650799,-167.0,0.0004201,2]
[340982041,1730208650808,-150.0,0.00042177,2]
[340982042,1730208650817,-1484.32,0.000422,60]
[340982043,1730208650827,-623.0978477,0.00042258,4]
[340982044,1730208650836,-451.52632276,0.0004227,4]
[340982045,1730208650846,-451.52632276,0.0004231,4]
[340982046,1730208650856,-939.30223071,0.00042311,4]
[340982047,1730208650865,-939.30223071,0.00042314,4]
[340982048,1730208650874,-451.52632276,0.00042323,4]
[340982049,1730208650883,-623.0978477,0.00042324,4]
[340982050,1730208650892,-451.52632276,0.00042326,4]
[340982051,1730208650901,-939.30223071,0.0004233,4]
[340982052,1730208650910,-167.44,0.00042356,2]
[340982053,1730208650920,-451.52632276,0.00042372,4]
[340982054,1730208650929,-152.46,0.00042374,2]
[340982055,1730208650938,-623.0978477,0.00042378,4]
[340982056,1730208650948,-623.0978477,0.00042379,4]
[340982057,1730208650957,-939.30223071,0.00042397,4]
[340982058,1730208650966,-939.30223071,0.00042424,4]
[340982059,1730208650975,-817.69,0.00042431,30]
[340982060,1730208650984,-451.52632276,0.00042452,4]
[340982061,1730208650993,-623.0978477,0.00042456,4]
[340982062,1730208651002,-939.30223071,0.0004247,4]
[340982063,1730208651011,-623.0978477,0.00042495,4]
[340982064,1730208651021,-1000.0,0.000425,47]
[340982065,1730208651029,-172.7311549,0.000425,14]
[340982066,1730208651040,-1000.0,0.000425,2]
[340982067,1730208651049,-400.0,0.000425,2]
[340982068,1730208651058,-593.71134818,0.0004254,120]
[340982069,1730208651067,-25853.94,0.00042588,7]
[340982070,1730208651076,-7416.075193,0.0004266,7]
[340982071,1730208651085,-2775.265778,0.0004266,7]
[340982072,1730208651095,-1410.92361,0.0004266,7]
[340982073,1730208651104,-211.80500366,0.0004266,14]
[340982074,1730208651113,-211.8050036,0.0004266,14]
[340982075,1730208651122,-211.8050036,0.000427,14]
[340982076,1730208651131,-561.41689746,0.00042764,120]
[340982077,1730208651141,-1545.0136749,0.000428,120]
[340982078,1730208651150,-500.0,0.00042888,30]
[340982079,1730208651158,-500.0,0.00042889,30]
[340982080,1730208651168,-500.0,0.00042889,30]
[340982081,1730208651177,-500.0,0.00042889,30]
[340982082,1730208651186,-500.0,0.00042889,30]
[340982083,1730208651196,-500.0,0.00042889,31]
[340982084,1730208651205,-975.33,0.00042889,33]
[340982085,1730208651214,-55996.42902038,0.000429,60]
[340982086,1730208651223,-1484.32,0.000429,60]
[340982087,1730208651233,-11911.12051402,0.000429,7]
[340982088,1730208651243,-263.22450588,0.000429,120]
[340982089,1730208651256,-162.71,0.000429,30]
[340982090,1730208651265,-500.0,0.00042939,60]
[340982091,1730208651275,-173.93779129,0.00042959,2]
[340982092,1730208651284,-1000.0,0.00042999,30]
[340982093,1730208651294,-1000.0,0.00042999,30]
[340982094,1730208651304,-1000.0,0.00042999,30]
[340982095,1730208651313,-1000.0,0.00042999,30]
[340982096,1730208651322,-1000.0,0.00042999,30]
[340982097,1730208651334,-1109.46662799,0.00043,14]
[340982098,1730208651344,-2053.11412302,0.00043,30]
[340982099,1730208651354,-62392.52329842,0.00043,2]
[340982100,1730208651364,-310.0,0.00043,30]
[340982101,1730208651374,-242.2044,0.00043,120]
[340982102,1730208651383,-220.0,0.00043,120]
[340982103,1730208651393,-4690.30471935,0.00043,5]
[340982104,1730208651403,-1018.0,0.00043,10]
[340982105,1730208651412,-1000.0,0.00043,6]
[340982106,1730208651423,-1000.0,0.00043,6]
[340982107,1730208651432,-1335.11,0.00043,60]
[340982108,1730208651443,-1000000.0,0.00043,2]
[340982109,1730208651452,-1000000.0,0.00043,2]
[340982110,1730208651462,-1000000.0,0.00043,2]
[340982111,1730208651471,-1000000.0,0.00043,2]
[340982112,1730208651481,-500.0,0.00043,30]
[340982113,1730208651490,-900.0,0.00043,44]
[340982114,1730208651499,-303.15413798,0.00043,120]
[340982115,1730208651509,-193.63911238,0.00043,30]
[340982116,1730208651518,-1002.81993867,0.00043,30]
[340982117,1730208651529,-1000.0,0.00043014,30]
[340982118,1730208651538,-881.58077331,0.00043044,30]
[340982119,1730208651547,-2000.0,0.000431,120]
[340982120,1730208651557,-150.0,0.00043259,2]
[340982121,1730208651567,-1000.0,0.00043288,30]
[340982122,1730208651576,-152.0,0.00043362,5]
[340982123,1730208651586,-10000.0,0.000434,60]
[340982124,1730208651595,-10000.0,0.000434,70]
[340982125,1730208651605,-10000.0,0.000434,80]
[340982126,1730208651614,-10000.01052051,0.000434,50]
[340982127,1730208651624,-262.11148507,0.000434,120]
[340982128,1730208651633,-180.10291,0.00043498,120]
[340982129,1730208651643,-26644.0,0.000435,30]
[340982130,1730208651652,-163.84110158,0.000435,14]
[340982131,1730208651661,-12474.33684893,0.000435,120]
[340982132,1730208651671,-150.0,0.000435,120]
[340982133,1730208651680,-150.0,0.000435,120]
[340982134,1730208651690,-150.0,0.000435,120]
[340982135,1730208651699,-150.0,0.000435,120]
[340982136,1730208651708,-2000.0,0.000435,2]
[340982137,1730208651717,-2000.0,0.000435,2]
[340982138,1730208651727,-2000.0,0.000435,2]
[340982139,1730208651736,-2000.0,0.000435,2]
[340982140,1730208651747,-2000.0,0.000435,2]
[340982141,1730208651757,-2000.0,0.000435,2]
[340982142,1730208651767,-2000.0,0.000435,2]
[340982143,1730208651777,-2000.0,0.000435,2]
[340982144,1730208651786,-2000.0,0.000435,2]
[340982145,1730208651795,-2000.0,0.000435,2]
[340982146,1730208651805,-1000.0,0.00043562,30]
[340982147,1730208651815,-172.29563666,0.00043589,30]
[340982148,1730208651827,-13368.0,0.000436,14]
[340982149,1730208651837,-181.38,0.000436,120]
[340982150,1730208651846,-9938.5321377,0.0004363,2]
[340982151,1730208651932,-11164.3017079,0.0004363,2]
[340982152,1730208651941,-12390.0712781,0.0004363,2]
[340982153,1730208651950,-13615.8408483,0.0004363,2]
[340982154,1730208651959,-14841.6104185,0.0004363,2]
[340982155,1730208651969,-2785.9770505,0.0004363,2]
[340982156,1730208651978,-3138.6995138,0.0004363,2]
[340982157,1730208651987,-3491.4219772,0.0004363,2]
[340982158,1730208651998,-3844.1444405,0.0004363,2]
[340982159,1730208652007,-4196.8669038,0.0004363,2]
[340982160,1730208652017,-12831.78153577,0.00043653,30]
[340982161,1730208652026,-12831.78153577,0.00043653,30]
[340982162,1730208652035,-50000.0,0.00043659,2]
[340982163,1730208652044,-50000.0,0.00043659,3]
[340982164,1730208652053,-50000.0,0.00043659,4]
[340982165,1730208652062,-50000.0,0.00043659,5]
[340982166,1730208652072,-50000.0,0.00043659,6]
[340982167,1730208652081,-50000.0,0.00043659,7]
[340982168,1730208652090,-50000.0,0.00043659,8]
[340982169,1730208652100,-50000.0,0.00043659,9]
[340982170,1730208652109,-50000.0,0.00043659,10]
[340982171,1730208652118,-50000.0,0.00043659,11]
[340982172,1730208652127,-10000.0,0.00043659,2]
[340982173,1730208652137,-10000.0,0.00043659,3]
[340982174,1730208652146,-10000.0,0.00043659,4]
[340982175,1730208652155,-15327717.70010645,0.0004366,20]
[340982182,1730209315377,1997.24739621,0.00039,30]
[340982202,1730209832321,-152.46,0.00015342,2]
[340982203,1730209832331,-300.0,0.00019725,2]
[340982204,1730209832341,-300.0,0.00019725,2]
[340982205,1730209832350,-1588.280453,0.00021376,2]
[340982206,1730209832361,-420.0,0.00021484,2]
[340982207,1730209832370,-653.92,0.00022663,2]
[340982208,1730209832380,-587.0,0.00023401,2]
[340982209,1730209832390,-193.0,0.00025488,2]
[340982210,1730209832400,-259.0,0.000258,3]
[340982211,1730209832410,-421.62175,0.00032742,2]
[340982212,1730209832420,-152.46,0.00035616,2]
[340982213,1730209832430,-188.56590528,0.00038356,2]
[340982214,1730209832440,-1861.25106272,0.00039292,30]
[340982215,1730209832495,-346.49999998,0.00039292,30]
[340982216,1730209832507,-2812.15850831,0.00039292,30]
[340982217,1730209832558,-4448.84042899,0.00039292,30]
[340982218,1730209832568,-375.2,0.00039292,2]
[340982219,1730209832577,-160.88,0.00039648,2]
[340982220,1730209832586,-150.0,0.00039648,7]
[340982221,1730209832596,-606.28,0.00039746,120]
[340982222,1730209832605,-152.0,0.00039812,3]
[340982223,1730209832614,-250.0,0.0004,120]
[340982225,1730209832623,-421.62175,0.00040289,14]
[340982227,1730209832632,-20839.62,0.00040296,2]
[340982229,1730209832642,-250.0,0.00040302,2]
[340982231,1730209832652,-834.62497244,0.00040658,120]
[340982233,1730209832662,-527.04,0.00040982,2]
[340982235,1730209832671,-157.0,0.00041096,2]
[340982237,1730209832682,-185.0,0.000411,2]
[340982239,1730209832692,-151.0,0.000411,4]
[340982241,1730209832701,-150.0,0.00041353,2]
[340982243,1730209832710,-152.64,0.00041436,2]
[340982245,1730209832719,-160.539,0.00041505,61]
[340982247,1730209832731,-152.64,0.00041505,2]
[340982249,1730209832741,-154.17,0.00041536,120]
[340982251,1730209832750,-375.2,0.00041556,2]
[340982253,1730209832759,-152.64,0.00041574,2]
[340982255,1730209832768,-1000.0,0.00041579,2]
[340982256,1730209832778,-152.64,0.00041643,2]
[340982258,1730209832789,-181.71,0.00041777,120]
[340982261,1730209832799,-150.0,0.00042458,2]
[340982263,1730209832811,-1064.18419469,0.00042787,5]
[340982265,1730209832821,-1032.22722773,0.00042787,5]
[340982267,1730209832830,-300.0,0.000429,15]
[340982269,1730209832840,-155.6624702,0.00042959,2]
[340982271,1730209832849,-1000.0,0.00042999,30]
[340982273,1730209832859,-1000.0,0.00042999,30]
[340982274,1730209832868,-1000.0,0.00042999,30]
[340982276,1730209832877,-1073.5,0.00042999,30]
[340982278,1730209832887,-700.0,0.00043,15]
[340982280,1730209832896,-245.0,0.00043,120]
[340982282,1730209832906,-1790.42784763,0.00043,7]
[340982284,1730209832916,-1100.0,0.000431,15]
[340982286,1730209832926,-1500.0,0.000432,15]
[340982288,1730209832935,-1800.0,0.000433,15]
[340982290,1730209832945,-300.0,0.000434,15]
[340982292,1730209832954,-150.0,0.00043405,2]
[340982294,1730209832964,-150.0,0.00043416,2]
[340982296,1730209832974,-150.0,0.00043439,2]
[340982298,1730209832983,-150.0,0.00043459,2]
[340982300,1730209832992,-1570.66490583,0.00043459,120]
[340982301,1730209833002,-14609.7304,0.0004346,2]
[340982302,1730209833012,-4661.5712,0.0004346,2]
[340982303,1730209833021,-2386.3551,0.0004346,2]
[340982304,1730209833030,-550.90296087,0.0004346,15]
[340982305,1730209833042,-550.90296087,0.00043464,15]
[340982306,1730209833052,-550.90296087,0.00043469,15]
[340982307,1730209833061,-550.90296087,0.00043473,15]
[340982308,1730209833071,-550.90296087,0.00043478,15]
[340982309,1730209833081,-550.90296087,0.00043482,15]
[340982310,1730209833090,-550.90296087,0.00043487,15]
[340982311,1730209833100,-550.90296087,0.00043491,15]
[340982312,1730209833110,-550.90296087,0.00043496,15]
[340982314,1730209833120,-211.8050036,0.00043499,15]
[340982315,1730209833130,-300.0,0.000435,15]
[340982317,1730209833140,-320.12070816,0.000435,2]
[340982320,1730209833153,-1253.20242767,0.000435,2]
[340982322,1730209833162,-202.41667101,0.000435,2]
[340982324,1730209833172,-550.90296087,0.000435,15]
[340982326,1730209833181,-865.9365,0.00043518,2]
[340982328,1730209833191,-1014.96877475,0.00043518,2]
[340982334,1730209833243,-1012.21862525,0.00043518,2]
[340982336,1730209833252,-150.0,0.00043551,2]
[340982338,1730209833262,-20145.86964371,0.00043559,2]
[340982835,1730209838367,-1000.0,0.00041536,120]
[340982837,1730209838377,-450.0,0.00041536,120]
[340982839,1730209838386,-2101.52120591,0.00043559,2]
[340982864,1730209838629,-6836.30097135,0.00043559,2]
[340983040,1730209840410,-450.0,0.00041643,2]
[340983043,1730209840422,-8646.49587903,0.00043559,2]
[340983045,1730209840434,-2409.4857,0.00043559,2]
[340983047,1730209840447,-319.65313013,0.0004356,18]
[340983050,1730209840461,-2153.7775,0.0004356,2]
[340983052,1730209840475,-57275.496887,0.0004356,2]
[340983055,1730209840491,-2147.97,0.0004356,2]
[340983057,1730209840507,-2161.93590095,0.0004356,2]
[340983063,1730209840550,-1000.0,0.00041643,2]
[340983065,1730209840561,-5879.44999992,0.0004356,2]
[340983067,1730209840577,-33034.20901213,0.0004356,2]
[340983070,1730209840588,-284.9161,0.0004356,2]
[340983072,1730209840601,-150.0,0.00043562,2]
[340983074,1730209840613,-150.0,0.00043562,2]
[340983077,1730209840627,-153.89,0.00043562,2]
[340983078,1730209840639,-360.65,0.00043562,2]
[340983079,1730209840653,-150.0,0.00043562,2]
[340983080,1730209840665,-150.0,0.00043562,2]
[340983081,1730209840677,-360.65,0.00043562,2]
[340983082,1730209840689,-150.0,0.00043562,2]
[340983083,1730209840701,-150.0,0.00043562,2]
[340983085,1730209840714,-357.71,0.00043562,2]
[340983087,1730209840726,-150.0,0.00043562,2]
[340983089,1730209840742,-150.0,0.00043562,2]
[340983092,1730209840755,-150.0,0.00043562,2]
[340983094,1730209840767,-150.0,0.00043562,2]
[340983096,1730209840780,-157.1,0.00043562,2]
[340983099,1730209840794,-150.0,0.00043562,2]
[340983101,1730209840806,-150.0,0.00043562,2]
[340983103,1730209840819,-150.0,0.00043562,2]
[340983105,1730209840830,-150.0,0.00043563,2]
[340983107,1730209840843,-250.10108257,0.00043573,7]
[340983110,1730209840855,-150.0,0.00043582,2]
[340983112,1730209840867,-154.96,0.00043589,2]